Cogmind - Beta 13 @@@ ROGUE MODE // 2024.04.03 @ 20:35:05 Player: Baxter Result: Destroyed by D-53 Grenadier with Mini Grenade Launcher Performance ------------- Evolutions (0) 0 Regions Visited (2) 400 Robots Destroyed (30) 150 Value Destroyed (528) 528 Prototype IDs (0) 0 Alien Tech Used (0) 0 Bonus (0) 0 TOTAL SCORE: 1078 Bonus ------- None Cogmind --------- Core Integrity 0/250 Matter 300/300 Energy 100/100 System Corruption 1% Temperature Cool (0) Movement Treading (240) Ox1 Location -10/Mines Parts ------- > --- POWER (1) -------- (None) > --- PROPULSION (2) --- Improved Treads > --- UTILITY (2) ------ Large Storage Unit Seismic Detector > --- WEAPON (2) ------- Slug Cannon Grenade Launcher > --- INVENTORY (15) --- Light Ion Engine Improved Treads Armored Wheel Armored Wheel Armored Wheel Armored Wheel Large Matter Pod (150) Structural Scanner Seismic Detector Light Armor Plating Light Armor Plating Light Armor Plating Hacking Suite Thief Drone Bay Light Assault Rifle Peak State ------------ > --- POWER ------------ Light Ion Engine > --- PROPULSION ------- Improved Treads Improved Treads > --- UTILITY ---------- Large Storage Unit Seismic Detector > --- WEAPON ----------- Slug Cannon Grenade Launcher > --- INVENTORY -------- Light Ion Engine Improved Treads Armored Wheel Armored Wheel Armored Wheel Armored Wheel Large Matter Pod Structural Scanner Seismic Detector Light Armor Plating Light Armor Plating Light Armor Plating Hacking Suite Light Assault Rifle [Rating: 14] Favorites ----------- Power Light Ion Engine Engine Light Ion Engine Propulsion Improved Treads Treads Improved Treads Wheel Wheel Utility Seismic Detector Device Seismic Detector Storage Large Storage Unit Weapon Assault Rifle Ballistic Gun Assault Rifle Ballistic Cannon Slug Cannon Launcher Grenade Launcher Build | -11 -10 -10 ------- Run | Yrd Mat Min Slots Evolved . | . . . Power . | . . . Propulsion . | . . . Utility . | . . . Weapon . | . . . Parts Attached 19 | 6 10 3 Power 2 | 1 1 . Engine 2 | 1 1 . Core . | . . . Reactor . | . . . Propulsion 6 | 2 4 . Treads 5 | 1 4 . Leg . | . . . Wheel 1 | 1 . . Hover . | . . . Flight . | . . . Utility 5 | 1 3 1 Device 2 | . 1 1 Storage 3 | 1 2 . Processor . | . . . Hackware . | . . . Protection . | . . . Artifact . | . . . Weapon 6 | 2 2 2 Energy Gun . | . . . Energy Cannon . | . . . Ballistic Gun 3 | 2 1 . Ballistic Cannon 1 | . . 1 Launcher 2 | . 1 1 Special Weapon . | . . . Impact Weapon . | . . . Slashing Weapon . | . . . Piercing Weapon . | . . . Special Melee Weapon . | . . . Unidentified Prototypes . | . . . Parts Lost 4 | . . 4 Power 1 | . . 1 Propulsion 1 | . . 1 Utility . | . . . Weapon 2 | . . 2 Highest Loss Streak 2 | . . 2 To Critical Strikes . | . . . Average Slot Usage (%) 97 | . 99 93 Engine 14 | . 14 14 Treads 27 | . 27 27 Device 13 | . 13 14 Storage 14 | . 14 14 Ballistic Gun 17 | . 27 . Ballistic Cannon 4 | . . 11 Launcher 4 | . . 10 Naked Turns . | . . . Heaviest Build 34 | 11 28 34 Greatest Support 46 | 20 46 46 Greatest Overweight (x) 3 | 3 . 1 Average Overweight (x) . | . . . Largest Inventory Capacity 15 | 8 15 15 Average Capacity 12 | 7 11 15 Most Carried 15 | 7 15 15 Average Carried 11 | 5 10 14 Final Capacity 15 | 8 15 15 Final Carried 15 | 7 15 15 Class Distribution -------------------- 100% | Mutant Dominant Class ---------------- Mutant | -10/Materials Mutant | -10/Mines Resources | -11 -10 -10 ----------- Run | Yrd Mat Min Matter Collected 1021 | 276 664 81 Remotely . | . . . Salvage Created 809 | 53 676 80 Parts 72 | 3 65 4 Haulers Intercepted 1 | . 1 . Recyclers Shooed . | . . . Parts Field Recycled . | . . . Retrieved Matter . | . . . Parts Self-Destructed . | . . . Prevented . | . . . Kills | -11 -10 -10 ------- Run | Yrd Mat Min Combat Hostiles Destroyed 15 | . 13 2 Guns 12 | . 10 2 AOE 3 | . 3 . Classes Destroyed 8 | 1 7 . Worker 5 | . 5 . Builder 2 | . 2 . Tunneler 3 | 2 1 . Hauler 1 | . 1 . Operator 3 | . 3 . Watcher 1 | . 1 . Swarmer 5 | . 5 . Grunt 10 | . 8 2 Best Kill Streak 4 | 1 4 2 Combat Bots Only 4 | . 4 2 Max Kills in Single Turn 3 | 1 3 1 Gunslinging . | . . . Exploded 3 | . 3 . Melee . | . . . Uniques/NPCs Destroyed . | . . . Combat | -11 -10 -10 -------- Run | Yrd Mat Min Hostile Shots Fired 73 | . 52 21 Missed 20 | . 14 6 Damage Taken 1124 | . 448 676 Core 251 | . 38 213 Absorbed by Shields . | . . . Core Remaining (%) 100 | 100 . . Volleys Fired 89 | 4 79 6 Largest 2 | 2 2 2 Hottest 48 | 40 40 48 Shots Fired 176 | 8 157 11 Gun 172 | 8 156 8 Cannon 3 | . . 3 Launcher 1 | . 1 . Special . | . . . Kinetic 175 | 8 156 11 Thermal . | . . . Explosive 1 | . 1 . Electromagnetic . | . . . Robot Hit Streak 16 | 4 16 4 Robot Miss Streak 6 | 2 6 3 Penetration Max . | . . . Secondary Targets 1 | . . 1 Max Gunslinging Chain 1 | . . 1 Shots Hit Robots 104 | 4 95 5 Core Hits 49 | 3 42 4 Critical Kills . | . . . Critical Parts Destroyed 1 | . 1 . Critical Strikes 1 | . 1 . Destroy 1 | . 1 . Melee Attacks . | . . . Impact . | . . . Slashing . | . . . Piercing . | . . . Sneak Attacks . | . . . Combat Hostiles . | . . . Follow-up Attacks . | . . . Damage Inflicted 1472 | 40 1369 63 Guns 1319 | 40 1216 63 Cannons . | . . . Explosions 153 | . 153 . Melee . | . . . Ramming . | . . . Kinetic 1319 | 40 1216 63 Thermal . | . . . Explosive 153 | . 153 . Electromagnetic . | . . . Impact . | . . . Slashing . | . . . Piercing . | . . . Highest Corruption 1 | . 1 1 Average Corruption 1 | . 1 1 Corruption Purged . | . . . Corruption Blocked . | . . . Effects 11 | . 7 4 Message Errors 2 | . 2 . Matter Fused 1 | . 1 . Heat Flow Errors 2 | . 1 1 Energy Discharges 2 | . 1 1 Data Loss (minor) 3 | . 2 1 Misfires 1 | . . 1 Overload Shots . | . . . Overflow Damage . | . . . Projectiles . | . . . Explosions . | . . . Melee . | . . . Knockbacks . | . . . Impact . | . . . Kinetic . | . . . Secondary . | . . . Self-Inflicted Damage . | . . . Shots . | . . . Rammed . | . . . Targets Rammed . | . . . Kicked . | . . . Crushed . | . . . Highest Temperature 102 | . 81 102 Average Temperature 18 | . 13 27 Received Heat Transfer 204 | . 186 18 Siege Activations . | . . . Robots Corrupted . | . . . Combat Hostiles . | . . . Parts Fried . | . . . Impact Corruptions . | . . . Robots Melted . | . . . Combat Hostiles . | . . . Parts Melted . | . . . Heat Transferred . | . . . Parts Sabotaged . | . . . Parts Stolen . | . . . Parts Stripped . | . . . Power Chain Reactions . | . . . Alert | -11 -10 -10 ------- Run | Yrd Mat Min Peak Influence 225 | 10 225 117 Initial 42 | . 6 42 Average 72 | 4 94 49 Maximum Alert Level 1 | . 1 . Low Security (%) 95 | 100 92 100 Level 1 4 | . 7 . Level 2 . | . . . Level 3 . | . . . Level 4 . | . . . Level 5 . | . . . High Security . | . . . Max Security . | . . . Squads Dispatched 4 | . 4 . Investigation 1 | . 1 . Extermination . | . . . Reinforcement 3 | . 3 . Assault . | . . . Garrison . | . . . Intercept . | . . . Searches Triggered . | . . . Construction Impeded . | . . . Haulers Reinforced . | . . . Active Scanning Responses . | . . . Cargo Convoy Interrupts . | . . . Stealth | -11 -10 -10 --------- Run | Yrd Mat Min Distress Signals 1 | . 1 . Communications Jammed . | . . . Distress Signals . | . . . Times Spotted 42 | . 29 13 Peak Tracking Total 12 | . 4 12 Tactical Retreats 1 | . . 1 Traps | -11 -10 -10 ------- Run | Yrd Mat Min Traps Triggered 3 | . 3 . Indirectly . | . . . Trap Hack Attempts . | . . . Triggered . | . . . Disarmed . | . . . Reprogrammed . | . . . Reused . | . . . Traps Extracted . | . . . Installed . | . . . Triggered . | . . . Machines | -11 -10 -10 ---------- Run | Yrd Mat Min Machines Disabled 1 | . 1 . Max in Single Turn 1 | . 1 . Machines Repaired . | . . . Machines Dismantled . | . . . Machines Sabotaged . | . . . Overloaded Fab Kills . | . . . Hacking | -11 -10 -10 --------- Run | Yrd Mat Min Machines Accessed 7 | . 6 1 Terminals 6 | . 6 . Fabricators . | . . . Repair Stations . | . . . Recycling Units . | . . . Scanalyzers . | . . . Garrison Access . | . . . Total Hacks 18 | . 17 1 Successful 8 | . 7 1 Failed 10 | . 10 . Catastrophic 2 | . 2 . Database Lockouts . | . . . Manual 16 | . 16 . Terminals 17 | . 17 . Fabricators . | . . . Repair Stations . | . . . Recycling Units . | . . . Scanalyzers . | . . . Garrison Access . | . . . Terminal Hacks 4 | . 3 1 Record 1 | . 1 . Robot Analysis 2 | . 2 . Open Door 1 | . . 1 Fabricator Hacks . | . . . Repair Station Hacks . | . . . Recycling Unit Hacks . | . . . Scanalyzer . | . . . Garrison Access Hacks . | . . . Unauthorized Hacks 4 | . 4 . Terminals 4 | . 4 . Botnet 4 | . 4 . Fabricators . | . . . Repair Stations . | . . . Recycling Units . | . . . Scanalyzers . | . . . Garrison Access . | . . . Data Cores Recovered . | . . . Used . | . . . Hacking Detections 6 | . 6 . Full Trace Events 1 | . 1 . Feedback Events . | . . . Feedback Blocked . | . . . Robot Schematics Acquired . | . . . Robots Built . | . . . Authchips . | . . . Time . | . . . Total Robot Build Rating . | . . . Part Schematics Acquired . | . . . Parts Built . | . . . Authchips . | . . . Time . | . . . Total Part Build Rating . | . . . Parts Repaired . | . . . Time . | . . . Parts Recycled . | . . . Recycled Matter . | . . . Retrieved Matter . | . . . Retrieved Components . | . . . Parts Scanalyzed . | . . . Part Schematics Acquired . | . . . Parts Damaged . | . . . Bothacking | -11 -10 -10 ------------ Run | Yrd Mat Min Used RIF Installer . | . . . Robots Hacked . | . . . Non-combat . | . . . Combat . | . . . Robot Hacks Applied . | . . . Relay Couplers Released . | . . . Fabnet Peak Effective % . | . . . Robots Rewired . | . . . Allies Hacked . | . . . Hacks Repelled . | . . . Allies | -11 -10 -10 -------- Run | Yrd Mat Min Total Allies 1 | . . 1 Largest Group 1 | . . 1 Highest-Rated Group 31 | . . 31 Highest-Rated Ally 31 | . . 31 Total Orders . | . . . Ally Attacks . | . . . Total Damage . | . . . Kills . | . . . Allies Corrupted . | . . . Allies Melted . | . . . Intel | -11 -10 -10 ------- Run | Yrd Mat Min Robot Analysis Total 2 | . 2 . Derelict Logs Recovered 1 | . . 1 Drone Launches . | . . . Drone Recoveries . | . . . Exploration | -11 -10 -10 ------------- Run | Yrd Mat Min Turns Passed 2534 | 173 1453 908 Spaces Moved 1390 | 103 737 550 Core 24 | 24 . . Treads 1362 | 75 737 550 Legs . | . . . Wheels 4 | 4 . . Hover . | . . . Flight . | . . . Fastest Speed 50 | 50 160 160 Average Speed 159 | 143 160 161 Slowest Speed 240 | 200 160 240 Overloaded Moves . | . . . Propulsion Burnouts . | . . . Robots Hopped . | . . . Cave-ins Triggered . | . . . Exploration Rate (%) 62 | 7 84 97 Regions Visited 2 Branch Regions 1 Pre-discovered Areas 1 | . . 1 Known Exits Taken . | . . . Unknown Exits Taken 2 | 1 1 . Scrap Searched 1 | . . 1 Spaces Dug . | . . . Terrain Destroyed 8 | . 5 3 Melee . | . . . Projectile 3 | . . 3 AOE 5 | . 5 . Terrain Rammed . | . . . Walls Destroyed . | . . . Machines Disabled . | . . . Actions | -11 -10 -10 --------- Run | Yrd Mat Min Total 1547 | 119 868 560 Wait 11 | . 11 . Move 1388 | 102 736 550 Hop . | . . . Pick Up 26 | 7 18 1 Fast Attach 8 | 6 1 1 Attach 1 | . . 1 Detach . | . . . Swap 10 | . 9 1 Drop 14 | . 14 . Fire 89 | 4 79 6 Melee . | . . . Ram . | . . . Kick . | . . . Crush . | . . . Escape Stasis . | . . . Rewire . | . . . Trap . | . . . Miscellaneous . | . . . Route ------- -11/Scrapyard -10/Materials (discovered 4 exits: [*Mat x3] / *Min) -10/Mines (discovered 2 exits: [*Mat x2]) History --------- Turn | Location | Event 12 | -11/Scrapyard | Discovered new exit (range 15) 174 | -11/Scrapyard | Entered Materials 302 | -10/Materials | Build established: Mutant 413 | -10/Materials | Discovered new exit (range 9) 711 | -10/Materials | Discovered new exit (range 11) 828 | -10/Materials | Discovered new exit (range 9) 1453 | -10/Materials | Discovered new exit (range 15) 1627 | -10/Materials | Entered Mines 1628 | -10/Mines | Assembled infested the area 1658 | -10/Mines | Core integrity fell below 50% 1661 | -10/Mines | Core integrity fell below 20% 1751 | -10/Mines | Received a Mining Laser from a helpful Derelict 1793 | -10/Mines | A weapon hastily lodged in a ceiling crevice suddenly fell to the ground 2114 | -10/Mines | Discovered new exit (range 9) 2273 | -10/Mines | Discovered new exit (range 8) 2378 | -10/Mines | Found the Drone Emporium 2388 | -10/Mines | Found Prototype Device 2535 | -10/Mines | Destroyed by D-53 Grenadier with Mini Grenade Launcher Last Messages --------------- 02377_ Connecting with SHOP.Sys... 02377_ Current location identified: Mines >>Open Door Sealed Doors opened. 02378_ K9-SNP(g): "Well that was anticlimactic. Heard you outside and thought you were from the Merchants Guild. I haven't even officially opened my Drone Emporium yet but am totally ready to tell them where they can shove that C&D." 02380_ K9-SNP(g): "I'm a fan of the free market. Free drones for all! No strings attached!" 02388_ Acquired Prototype Device. 02492_ System corrupted: FCS attempts to trigger Slug Cannon. 02492_ System corrupted: Slug Cannon misfires. 02515_ Imp. Treads destroyed. 02531_ Lgt. Ion Engine destroyed. 02531_ SHOP.Sys disabled. 02531_ Machine disabled. Map ----- +----------------------------------------------------+ | | | | | | | | | | | | | | | | | | | | | | | | | | | ?????????????????????????????????????????????????? | | ?????????????????????????????????????????????????? | | ???????????????????######????????????????????????? | | ??????????????????## """##???????????????????????? | | ??????????????????# #???????????????????????? | | ??????????????????# #???????????????????????? | | ??????????????????# #???????????????????????? | | ???###???????###### g #####???????????????????? | | ??## ##?????## ## # ##??????????????????? | | ### #????## #???????####???????? | | #????# dd #####???? ???????? | | ##????# ## # #???? ???????? | | ##????## #### ## @ #??### ###?????? | | ##????# ###?## # ## ## #### #?????? | | # ##???# #???# # ####%*= # """ #???### | | # #???# #??## ##??#!|!""" # """ #???# | | ## ##### #??# ##???#!%=""" # """ #???# | | ?## ## #??# #????#=<%""" # #???# | | ??# ### #?## ????#=%= #### ###???# | | ??# ### ###### ##???# = """ #??# "#????# | | ??## ## #?## ####????# """ #??# ##????# | | ??## ## ### ##???#### """ #??# #????## | | ??# " ## #?### #% #??# #????# | | ??# ## ### ##### % """ #### #????# | | ??# ## # ####### % """ #????## | | ?## ######?##### = # """ ######?????## | | ?# ##"#??????# ## ## #?????####??# | | ?# ####??????###% %### %""" #????## ##?## | | ?## #???????### ##?# """ #???## ##?# | | ??### #???????## ##### """ #??## ##? | | ????# ########## ## ## #?## #? | | ????# ##?# ## ## #?########### ## | | ????# #??## ### ## ##???????#### # | | ????# #??# ## % ## #??????## | | ????# %#?## # ###???????# | | ????# % ### ##??????## ## | | ????# ####### # # ###?????# #### # | +----------------------------------------------------+ Best States ------------- Heat Dissipation 25 Energy Generation 10 Energy Capacity 125 Matter Stores 300 Matter Capacity 300 Sight Range 16 Terrain Scan Density 10 Evasion (%) 50 Recoil Reduction 2 Item Schematics ----------------- None Robot Schematics ------------------ None Fabricated ------------ Nothing Alien Tech Used ----------------- None Achievements -------------- None Challenges ------------ None Game ------ Seed LongswordScanCutter Manual? 0 Play Time 00:13:19 Cumulative 81.0 hours Start 2024.04.03 @ 20:24:18 End 2024.04.03 @ 20:35:05 Sessions 1 Manual Loads 0 Difficulty Rogue Special Mode None Game No. 82 Rogue 82 Adventurer 0 Explorer 0 Win Type - Total 1 Types 1/0/0/0/0/0/0/0/0 Lore% 37 Gallery% 48 Achievement% 37 Wizard Run 0 Options --------- Layout 1 ASCII 0 Keyboard 0 Movement Numpad Keybinds 0 Fullscreen 2 Font 24/X11 Map View 50x35 Zoom Use 0% Tactical HUD 1 Map Filters NONE Filters NONE Steam 0 RUN: 5a9ad118-4474-486c-81e5-06c93b3879a5